bitfinex-derivatives/quotes_BTCF0:USTF0_20250508
["timestamp","ask_amount","ask_price","bid_price","bid_amount"]
[1746693157122,0.99350272,99558.0,99557.0,0.015]
[1746693157626,0.89305872,99558.0,99557.0,0.015]
[1746693159422,0.89155236,99558.0,99557.0,0.015]
[1746693161726,0.89155236,99558.0,99557.0,0.0135]
[1746693162428,0.89155236,99558.0,99557.0,0.02920516]
[1746693164034,0.890046,99558.0,99557.0,0.02920516]
[1746693164732,0.890046,99558.0,99557.0,0.02920515]
[1746693165333,0.967246,99558.0,99557.0,0.02920515]
[1746693165934,0.967246,99558.0,99557.0,0.0292052]
[1746693166437,0.967246,99558.0,99557.0,0.0277052]
[1746693168537,0.96573964,99558.0,99557.0,0.0277052]
[1746693170830,0.96573964,99558.0,99557.0,0.0262052]
[1746693171832,0.88853964,99558.0,99557.0,0.0262052]
[1746693172136,0.96573964,99558.0,99557.0,0.04145552]
[1746693173033,0.96573964,99558.0,99557.0,0.0414555]
[1746693173238,0.96423328,99558.0,99557.0,0.0414555]
[1746693175444,0.96419328,99558.0,99557.0,0.0399555]
[1746693177342,0.96419328,99558.0,99557.0,0.2079555]
[1746693177741,0.96268692,99558.0,99557.0,0.2079555]
[1746693180040,0.96268692,99558.0,99557.0,0.2938555]
[1746693180829,0.96468692,99558.0,99557.0,0.2938555]
[1746693181539,0.96468692,99558.0,99557.0,0.27815032]
[1746693181742,0.96468692,99558.0,99557.0,0.29385548]
[1746693182148,0.96318056,99558.0,99557.0,0.29385548]
[1746693182537,0.96318056,99558.0,99557.0,0.29735548]
[1746693184544,0.96318056,99558.0,99557.0,0.29585548]
[1746693184844,0.96318056,99558.0,99557.0,0.28210516]
[1746693186933,0.9616742,99558.0,99557.0,0.28210516]
[1746693189044,0.9616742,99558.0,99557.0,0.28060516]
[1746693190650,0.9616742,99558.0,99557.0,0.28022247]
[1746693191251,0.96016784,99558.0,99557.0,0.28022247]
[1746693192456,0.96016784,99558.0,99557.0,0.28022296]
[1746693193552,0.96016784,99558.0,99557.0,0.27872296]
[1746693194351,0.96016784,99558.0,99557.0,0.27874878]
[1746693195353,0.96016784,99558.0,99557.0,0.27875664]
[1746693196047,0.95866148,99558.0,99557.0,0.27875664]
[1746693196252,0.95866148,99558.0,99557.0,0.27900506]
[1746693198146,0.95866148,99558.0,99557.0,0.27909761]
[1746693198454,0.95866148,99558.0,99557.0,0.27759761]
[1746693200857,0.95715512,99558.0,99557.0,0.27759761]
[1746693201561,0.95715512,99558.0,99557.0,0.27737961]
[1746693202260,1.31795512,99558.0,99557.0,0.27737961]
[1746693202666,1.31795512,99558.0,99557.0,0.2619]
[1746693202957,1.31795512,99558.0,99557.0,0.2604]
[1746693205352,1.31644876,99558.0,99557.0,0.2604]
[1746693207561,1.31644876,99558.0,99557.0,0.2589]
[1746693209865,1.3149424,99558.0,99557.0,0.2589]
[1746693212066,1.3149424,99558.0,99557.0,0.2574]
[1746693214467,1.31343604,99558.0,99557.0,0.2574]
[1746693216777,0.2009081,99543.0,99542.0,6.89e-06]
[1746693217875,0.7009081,99543.0,99542.0,6.89e-06]
[1746693218083,0.7019081,99543.0,99542.0,0.28200689]
[1746693218676,0.7029081,99543.0,99542.0,0.28200689]
[1746693219079,0.77848174,99543.0,99542.0,0.28200689]
[1746693219980,0.77848174,99543.0,99542.0,0.29825172]
[1746693221280,0.77848174,99543.0,99542.0,0.29675172]
[1746693223079,0.05519395,99543.0,99542.0,1.14833878]
[1746693223377,0.07708,99574.0,99569.0,0.2008556]
[1746693223584,0.07708,99574.0,99572.0,0.1993476]
[1746693223789,0.2779256,99574.0,99573.0,0.2865476]
[1746693224089,0.2779256,99574.0,99573.0,0.30279243]
[1746693224588,0.2008456,99574.0,99573.0,0.30279243]
[1746693225483,0.2018456,99574.0,99573.0,0.30279243]
[1746693225888,0.2008456,99574.0,99573.0,0.30279243]
[1746693226089,0.20033924,99574.0,99573.0,0.30379243]
[1746693226480,0.20033924,99574.0,99573.0,0.30879243]
[1746693226877,0.20033924,99574.0,99573.0,0.40019243]
[1746693227283,0.20033924,99574.0,99573.0,0.40119243]
[1746693227486,0.20033924,99574.0,99573.0,0.40019243]
[1746693227681,0.20033924,99574.0,99573.0,0.40119243]
[1746693228376,0.20033924,99574.0,99573.0,0.19884483]
[1746693228576,0.19933924,99574.0,99573.0,0.19884483]
[1746693228782,0.20033924,99574.0,99573.0,0.19884483]
[1746693230288,0.20033924,99574.0,99573.0,0.19384483]
[1746693230792,0.19883288,99574.0,99573.0,0.19384483]
[1746693231395,0.19783288,99574.0,99573.0,0.19284483]
[1746693231584,0.19883288,99574.0,99573.0,0.19384483]
[1746693232888,0.19883288,99574.0,99573.0,0.19234483]
[1746693234197,0.19883288,99574.0,99573.0,0.39319243]
[1746693234597,0.19883288,99574.0,99573.0,0.19234483]
[1746693235188,0.19732652,99574.0,99573.0,0.19234483]
[1746693236506,0.19732652,99574.0,99573.0,0.19194483]
[1746693236796,0.19732652,99574.0,99573.0,0.19594483]
[1746693237598,0.19732652,99574.0,99573.0,0.19444483]
[1746693239101,0.19732652,99574.0,99573.0,0.14444483]
[1746693239801,0.19582016,99574.0,99573.0,0.15962193]
[1746693240896,0.19582016,99574.0,99573.0,0.52042193]
[1746693241503,0.19582016,99574.0,99573.0,0.5204235]
[1746693241901,0.19582016,99574.0,99573.0,0.5189235]
[1746693242698,0.28462016,99574.0,99573.0,0.5189235]
[1746693242904,0.28462016,99574.0,99573.0,0.50374483]
[1746693243091,0.19582016,99574.0,99573.0,0.50374483]
[1746693244202,0.27712016,99574.0,99573.0,0.50374483]
[1746693244610,0.2756138,99574.0,99573.0,0.50374483]
[1746693245305,0.3638138,99574.0,99573.0,0.50374483]
[1746693246897,0.3638138,99574.0,99573.0,0.50224483]
[1746693249203,0.36230744,99574.0,99573.0,0.50224483]
[1746693249605,0.36230744,99574.0,99573.0,0.47444483]
[1746693250406,0.41750139,99574.0,99573.0,0.47444483]
[1746693251504,0.41750139,99574.0,99573.0,0.48855971]
[1746693251999,0.41750139,99574.0,99573.0,0.48864539]
[1746693252805,0.49450139,99574.0,99573.0,0.48864539]
[1746693253799,0.49299503,99574.0,99573.0,0.47294483]
[1746693254005,0.49299503,99574.0,99573.0,0.48864539]
[1746693254902,0.49299503,99574.0,99573.0,0.68949299]
[1746693256211,0.49299503,99574.0,99573.0,0.68799299]
[1746693257009,0.49299503,99574.0,99573.0,0.48714539]
[1746693258207,0.49299503,99574.0,99573.0,0.68799299]
[1746693258410,0.49148867,99574.0,99573.0,0.68799299]
[1746693258807,0.41448867,99574.0,99573.0,0.68799299]
[1746693259006,0.49148867,99574.0,99573.0,0.68799299]
[1746693260811,0.49148867,99574.0,99573.0,0.68649299]
[1746693263004,0.48998231,99574.0,99573.0,0.68649299]
[1746693263312,0.41298231,99574.0,99573.0,0.68649299]
[1746693263512,0.48998231,99574.0,99573.0,0.68649299]
[1746693265318,0.48998231,99574.0,99573.0,0.68499299]
[1746693266016,0.48998231,99574.0,99573.0,0.32419299]
[1746693266210,0.48998231,99574.0,99573.0,0.68499299]
[1746693267514,0.48847595,99574.0,99573.0,0.68499299]
[1746693268316,0.48847595,99574.0,99573.0,0.32419299]
[1746693268513,0.48847595,99574.0,99573.0,0.68499298]
[1746693269917,0.48847595,99574.0,99573.0,0.68349298]
[1746693272116,0.48696959,99574.0,99573.0,0.32269298]
[1746693272319,0.48696959,99574.0,99573.0,0.68349298]
[1746693273014,0.48696959,99574.0,99573.0,0.59209298]
[1746693273216,0.48696959,99574.0,99573.0,0.39124538]
[1746693273714,0.48696959,99574.0,99573.0,0.59209298]
[1746693273919,0.40996959,99574.0,99573.0,0.59209298]
[1746693274117,0.48688959,99574.0,99573.0,0.59209298]
[1746693274617,0.48688959,99574.0,99573.0,0.59059298]
[1746693274823,0.30261395,99574.0,99573.0,0.59059298]
[1746693275019,0.13311395,99574.0,99573.0,0.59059298]
[1746693275318,0.2787656,99574.0,99573.0,0.61059298]
[1746693275519,0.2787656,99574.0,99573.0,0.69259298]
[1746693275719,0.2787656,99574.0,99573.0,0.6725929]
[1746693276212,0.2787656,99574.0,99573.0,0.6825929]
[1746693276707,0.2787656,99574.0,99573.0,0.6725929]
[1746693277019,0.27725924,99574.0,99573.0,0.6725929]
[1746693277620,0.2008456,99574.0,99573.0,0.6725929]
[1746693277813,0.001,99576.0,99575.0,0.2008435]
[1746693278120,0.001,99576.0,99575.0,0.24654397]
[1746693278818,0.001,99576.0,99575.0,0.2537888]
[1746693279319,0.2028415,99576.0,99575.0,0.2532888]
[1746693280019,0.2028415,99576.0,99575.0,0.2572888]
[1746693281522,0.20133514,99576.0,99575.0,0.2572888]
[1746693281916,0.20133514,99576.0,99575.0,0.4242888]
[1746693283919,0.20133514,99576.0,99575.0,0.4227888]
[1746693284221,0.27763514,99576.0,99575.0,0.4227888]
[1746693284421,0.36133514,99576.0,99575.0,0.4227888]
[1746693286326,0.35982878,99576.0,99575.0,0.4227888]
[1746693286523,0.35982878,99576.0,99575.0,0.42278765]
[1746693287426,0.0763,99576.0,99575.0,0.42278765]
[1746693287615,0.2771415,99576.0,99575.0,0.42278765]
[1746693287819,0.0763,99576.0,99575.0,0.42278765]
[1746693288126,0.2008286,99583.0,99582.0,0.2008274]
[1746693288315,0.2849286,99583.0,99582.0,0.57732672]
[1746693288518,0.34012255,99583.0,99582.0,0.57582672]
[1746693288720,0.42212255,99583.0,99582.0,0.58307155]
[1746693289327,0.42312255,99583.0,99582.0,0.58707155]
[1746693290131,0.42312255,99583.0,99582.0,0.58707144]
[1746693290324,0.42312255,99583.0,99582.0,0.58807144]
[1746693290721,0.42312255,99583.0,99582.0,0.58507144]
[1746693290921,0.42312255,99583.0,99582.0,0.59007144]
[1746693292638,0.42212255,99583.0,99582.0,0.58807144]
[1746693292930,0.42312255,99583.0,99582.0,0.59007144]
[1746693293826,0.42312255,99583.0,99582.0,0.59007143]
[1746693302146,0.42312255,99583.0,99582.0,0.57437223]
[1746693302748,0.42312255,99583.0,99582.0,0.59007145]
[1746693306243,0.42312255,99583.0,99582.0,0.57437223]
[1746693306451,0.42312255,99583.0,99582.0,0.59007149]
[1746693308153,0.42312255,99583.0,99582.0,0.66777149]
[1746693311549,0.42312255,99583.0,99582.0,0.46844409]
[1746693311750,0.42312255,99583.0,99582.0,0.66911567]
[1746693312254,0.42312255,99583.0,99582.0,0.66711567]
[1746693312441,0.42312255,99583.0,99582.0,0.46628627]
[1746693312850,0.42212255,99583.0,99582.0,0.46528627]
[1746693313054,0.42312255,99583.0,99582.0,0.46528627]
[1746693313354,0.42312255,99583.0,99582.0,0.46228627]
[1746693313551,0.42312255,99583.0,99582.0,0.66711567]
[1746693313853,0.42312255,99583.0,99582.0,0.66672454]
[1746693314357,0.42312255,99583.0,99582.0,0.66572454]
[1746693315051,0.42312255,99583.0,99582.0,0.10409514]
[1746693315246,0.42312255,99583.0,99582.0,0.02239514]
[1746693315447,0.42312255,99583.0,99582.0,0.02639514]
[1746693317251,0.42312255,99583.0,99582.0,0.02664393]
[1746693319150,0.42312255,99583.0,99582.0,0.02653913]
[1746693321357,0.42312255,99583.0,99582.0,0.01124483]
[1746693326247,0.42312255,99583.0,99582.0,0.02631949]
[1746693326457,0.49996255,99583.0,99582.0,0.02631949]
[1746693329254,0.49996255,99583.0,99582.0,0.02652642]
[1746693333358,0.49996255,99583.0,99582.0,0.01124483]
[1746693333757,0.2786686,99583.0,99582.0,0.21207423]
[1746693334151,0.2786686,99583.0,99582.0,0.35567423]
[1746693334353,0.2786686,99583.0,99582.0,0.37107293]
[1746693335660,0.2785886,99583.0,99582.0,0.37107293]
[1746693335957,0.07776,99583.0,99582.0,0.37107293]
[1746693336168,0.07776,99583.0,99582.0,0.38107293]
[1746693336757,0.2785874,99583.0,99582.0,0.38107293]
[1746693337264,0.07776,99583.0,99582.0,0.39107293]
[1746693337762,0.2785874,99583.0,99582.0,0.39107293]
[1746693339665,0.2785874,99583.0,99582.0,0.38107293]
[1746693342665,0.2785874,99583.0,99582.0,0.38137331]
[1746693344162,0.3588874,99583.0,99582.0,0.38137331]
[1746693346369,0.3588874,99583.0,99582.0,0.38137298]
[1746693347666,0.4288874,99583.0,99582.0,0.38137298]
[1746693349969,0.4288874,99583.0,99582.0,0.36567423]
[1746693350173,0.4288874,99583.0,99582.0,0.38137288]
[1746693350873,0.4288874,99583.0,99582.0,0.74217288]
[1746693351675,0.4288874,99583.0,99582.0,0.73217288]
[1746693353770,0.4288874,99583.0,99582.0,0.73217289]
[1746693355172,0.3521274,99583.0,99582.0,0.73217289]
[1746693355477,0.3521274,99583.0,99582.0,0.73217293]
[1746693357176,0.3521274,99583.0,99582.0,0.73317293]
[1746693357578,0.3511274,99583.0,99582.0,0.73217293]
[1746693357779,0.3521274,99583.0,99582.0,0.73317293]
[1746693358080,0.3521274,99583.0,99582.0,0.66017293]
[1746693358273,0.3511274,99583.0,99582.0,0.65917293]
[1746693358473,0.3521274,99583.0,99582.0,0.66117293]
[1746693358678,0.3521274,99583.0,99582.0,0.65817293]
[1746693359281,0.3521274,99583.0,99582.0,0.65817299]
[1746693360381,0.3521274,99583.0,99582.0,0.66817299]
[1746693366273,0.3521274,99583.0,99582.0,0.668173]
[1746693367383,0.3521274,99583.0,99582.0,0.658173]
[1746693367986,0.3521274,99583.0,99582.0,0.65817299]
[1746693369788,0.3521274,99583.0,99582.0,0.65817298]
[1746693372188,0.3521274,99583.0,99582.0,0.65817297]
[1746693375387,0.3521274,99583.0,99582.0,0.64247423]
[1746693375592,0.3521274,99583.0,99582.0,0.65817297]
[1746693376382,0.40732135,99583.0,99582.0,0.65817297]
[1746693380002,0.40732135,99583.0,99582.0,0.29737297]
[1746693380198,0.40732135,99583.0,99582.0,0.65817297]
[1746693386496,0.40732135,99583.0,99582.0,0.65817298]
[1746693388605,0.40732135,99583.0,99582.0,0.65817297]
[1746693391005,0.20649395,99583.0,99582.0,0.65817297]
[1746693391500,0.40732135,99583.0,99582.0,0.65817297]
[1746693391700,0.40732135,99583.0,99582.0,0.73780795]
[1746693391909,0.20649395,99583.0,99582.0,0.73780795]
[1746693392104,0.40732135,99583.0,99582.0,0.73780795]
[1746693392403,0.0813,99583.0,99582.0,0.73780795]
[1746693392600,0.2821274,99583.0,99582.0,0.73780795]
[1746693392800,0.2821274,99583.0,99582.0,0.72257297]
[1746693393107,0.0813,99583.0,99582.0,0.72257297]
[1746693393808,0.2821274,99583.0,99582.0,0.72257282]
[1746693394009,0.4186274,99583.0,99582.0,0.72257282]
[1746693394202,0.2178,99583.0,99582.0,0.72257282]
[1746693395307,0.4186274,99583.0,99582.0,0.72257282]
[1746693396113,0.2178,99583.0,99582.0,0.72257282]
[1746693400015,0.2178,99583.0,99582.0,0.72157282]
[1746693400312,0.151,99583.0,99582.0,0.72157282]
[1746693401510,0.151,99583.0,99582.0,0.72257281]
[1746693403309,0.15,99583.0,99582.0,0.72157281]
[1746693403613,0.151,99583.0,99582.0,0.72357281]
[1746693404004,0.151,99583.0,99582.0,0.72457281]
[1746693404605,0.151,99583.0,99582.0,0.91457281]
[1746693405805,0.2183,99583.0,99582.0,0.91457281]
[1746693406008,0.4191274,99583.0,99582.0,0.91457281]
[1746693406212,0.4191274,99583.0,99582.0,0.85017281]
[1746693406813,0.4191274,99583.0,99582.0,0.78017281]
[1746693407114,0.4191274,99583.0,99582.0,0.78017282]
[1746693407715,0.47432135,99583.0,99582.0,0.78017282]
[1746693408813,0.47432135,99583.0,99582.0,0.64447423]
[1746693409016,0.47432135,99583.0,99582.0,0.66017282]
[1746693409716,0.47432135,99583.0,99582.0,0.80017282]
[1746693409918,0.47432135,99583.0,99582.0,0.38874342]
[1746693410420,0.55100135,99583.0,99582.0,0.38874342]
[1746693410612,0.55100135,99583.0,99582.0,0.37304483]
[1746693410807,0.55100135,99583.0,99582.0,0.38842216]
[1746693414322,0.55100135,99583.0,99582.0,0.388745]
[1746693414821,0.55100135,99583.0,99582.0,0.428745]
[1746693415022,0.55100135,99583.0,99582.0,0.388745]
[1746693417726,0.47432135,99583.0,99582.0,0.388745]
[1746693417919,0.47432135,99583.0,99582.0,0.65517425]
[1746693417920,0.29498,99583.0,99582.0,0.65517425]
[1746693419218,0.22768,99583.0,99582.0,0.65517425]
[1746693420027,0.22768,99583.0,99582.0,0.84517425]
[1746693420230,0.4285074,99583.0,99582.0,0.84517425]
[1746693421122,0.3588074,99583.0,99582.0,0.84517425]
[1746693421520,0.15798,99583.0,99582.0,0.84517425]
[1746693422826,0.15798,99583.0,99582.0,0.84517287]
[1746693423325,0.22678,99583.0,99582.0,0.84517287]
[1746693424622,0.22678,99583.0,99582.0,0.84511551]
[1746693424928,0.15798,99583.0,99582.0,0.84511551]
[1746693425714,0.15798,99583.0,99582.0,0.91281551]
[1746693432427,0.0813,99583.0,99582.0,0.91281551]
[1746693439333,0.0813,99583.0,99582.0,0.91287216]
[1746693444336,0.1472,99583.0,99582.0,0.91287216]
[1746693445735,0.1472,99583.0,99582.0,0.84517216]
[1746693449433,0.0813,99583.0,99582.0,0.84517216]
[1746693449637,0.0813,99583.0,99582.0,1.08097216]
[1746693450034,0.0813,99583.0,99582.0,1.28097216]
[1746693450229,0.0813,99583.0,99582.0,1.28097015]
[1746693452532,0.0813,99583.0,99582.0,1.21477015]
[1746693452732,0.0813,99583.0,99582.0,1.21477017]
[1746693453842,0.0813,99583.0,99582.0,1.21477021]
[1746693456042,0.0813,99583.0,99582.0,0.85397021]
[1746693456344,0.0813,99583.0,99582.0,1.57557021]
[1746693457641,0.0813,99583.0,99582.0,1.57557022]
[1746693458636,0.0813,99583.0,99582.0,1.99327022]
[1746693459347,0.0813,99583.0,99582.0,1.99327015]
[1746693459646,0.0813,99583.0,99582.0,1.93367015]
[1746693462967,0.0813,99583.0,99582.0,1.21207015]
[1746693463158,0.0813,99583.0,99582.0,1.93367015]
[1746693466670,0.0813,99583.0,99582.0,1.93358262]
[1746693467970,0.0813,99583.0,99582.0,1.99548262]
[1746693468470,0.0813,99583.0,99582.0,1.99547972]
[1746693473273,0.1886,99594.0,99593.0,0.2008072]
[1746693473473,0.1886,99594.0,99593.0,1.22491269]
[1746693473772,0.24379395,99594.0,99593.0,1.22491269]
[1746693473972,0.24379395,99594.0,99593.0,1.22493611]
[1746693474268,0.24379395,99594.0,99593.0,1.23118094]
[1746693474873,0.24379395,99594.0,99593.0,1.23318094]
[1746693475767,0.24379395,99594.0,99593.0,1.23418131]
[1746693476671,0.1886,99594.0,99593.0,1.23418131]
[1746693477670,0.1886,99594.0,99593.0,1.23418306]
[1746693479383,0.1886,99594.0,99593.0,1.23421409]
[1746693480777,0.1249,99594.0,99593.0,1.35421409]
[1746693480978,0.1249,99594.0,99593.0,1.35421834]
[1746693481371,0.1249,99594.0,99593.0,1.41121834]
[1746693481775,0.1259,99594.0,99593.0,1.41921834]
[1746693484281,0.001,99594.0,99593.0,1.41923167]
[1746693484784,1e-07,99594.0,99593.0,1.41923167]
[1746693485081,1e-07,99594.0,99593.0,1.57703967]
[1746693485874,1e-07,99594.0,99593.0,1.80703967]
[1746693486076,1e-07,99594.0,99593.0,1.80690245]
[1746693486777,1e-07,99594.0,99593.0,1.80690725]
[1746693487471,1e-07,99594.0,99593.0,1.70649925]
[1746693487677,1e-07,99594.0,99593.0,1.80690725]
[1746693487878,1e-07,99594.0,99593.0,1.80705267]
[1746693489883,1e-07,99594.0,99593.0,1.80678825]
[1746693493389,1e-07,99594.0,99593.0,1.80694646]
[1746693494089,0.0582,99605.0,99604.0,0.2007851]
[1746693494290,0.0582,99605.0,99604.0,1.03717153]
[1746693494488,0.0582,99605.0,99604.0,1.46111636]
[1746693494889,0.001,99606.0,99605.0,0.200783]
[1746693495188,0.001,99606.0,99605.0,0.64636943]
[1746693495395,0.001,99606.0,99605.0,0.77011426]
[1746693496890,0.002,99606.0,99605.0,0.77211426]
[1746693497091,0.002,99606.0,99605.0,0.77521941]
[1746693497392,0.002,99606.0,99605.0,0.78550066]
[1746693497690,0.002,99606.0,99605.0,1.14440066]
[1746693498486,0.002,99606.0,99605.0,1.20470066]
[1746693498887,0.0569,99617.0,99616.0,0.2007609]
[1746693499089,0.0569,99617.0,99616.0,1.16495231]
[1746693499291,0.11209395,99617.0,99616.0,1.16495231]
[1746693499491,0.11209395,99617.0,99616.0,1.10119714]
[1746693499696,0.11209395,99617.0,99616.0,1.30119714]
[1746693500087,0.11309395,99617.0,99616.0,1.30119714]
[1746693500692,0.11309395,99617.0,99616.0,1.3021967]
[1746693500987,0.11209395,99617.0,99616.0,1.3021967]
[1746693501194,0.11209395,99617.0,99616.0,1.3041967]
[1746693501391,0.11209395,99617.0,99616.0,1.3051967]
[1746693502294,0.11209395,99617.0,99616.0,1.3606967]
[1746693502686,0.11209395,99617.0,99616.0,1.3051967]
[1746693503085,0.07656,99635.0,99634.0,0.2007246]
[1746693503290,0.07656,99635.0,99634.0,0.72721557]
[1746693503593,0.13175395,99635.0,99634.0,0.7334604]
[1746693504095,0.13175395,99635.0,99634.0,0.74340857]
[1746693504292,0.13375395,99635.0,99634.0,0.74440857]
[1746693504694,0.13175395,99635.0,99634.0,0.74440857]
[1746693504893,0.13175395,99635.0,99634.0,0.74740857]
[1746693504894,0.13275395,99635.0,99634.0,0.74740857]
[1746693505294,0.13275395,99635.0,99634.0,1.16510857]
[1746693506297,0.18875395,99635.0,99634.0,1.16510857]
[1746693507083,0.18875395,99635.0,99634.0,1.11510857]
[1746693507888,0.18875395,99635.0,99634.0,1.19510857]
[1746693508088,0.18875395,99635.0,99634.0,1.11498644]
[1746693509494,0.18875395,99635.0,99634.0,0.69728644]
[1746693509897,0.18875395,99635.0,99634.0,0.68733827]
[1746693511801,0.24305395,99635.0,99634.0,0.68733827]
[1746693512799,0.24305395,99635.0,99634.0,0.58733827]
[1746693513098,0.16649395,99635.0,99634.0,0.58733827]
[1746693513395,0.54434455,99635.0,99634.0,0.38661367]
[1746693513795,0.54434455,99635.0,99634.0,0.58733827]
[1746693513990,0.54434455,99635.0,99634.0,0.38661367]
[1746693514200,0.2007407,99626.0,99625.0,0.2007422]
[1746693514699,0.3011167,99626.0,99625.0,0.2007422]
[1746693515302,0.5283167,99626.0,99625.0,0.2007422]
[1746693515788,0.5283167,99626.0,99625.0,0.2037422]
[1746693516095,0.3613167,99626.0,99625.0,0.2037422]
[1746693516499,0.3613167,99626.0,99625.0,0.2067422]
[1746693516702,0.4156167,99626.0,99625.0,0.2067422]
[1746693516898,0.4156167,99626.0,99625.0,0.003]
[1746693517199,0.2007468,99624.0,99623.0,0.0501866]
[1746693517600,0.4126228,99624.0,99623.0,0.0501866]
[1746693518000,0.4126228,99624.0,99623.0,0.2509334]
[1746693518204,0.5806228,99624.0,99623.0,0.2509334]
[1746693518397,0.5806228,99624.0,99623.0,0.2007468]
[1746693518398,0.5816228,99624.0,99623.0,0.2007468]
[1746693519200,0.5816228,99624.0,99623.0,0.2307468]
[1746693519702,0.0501875,99622.0,99619.0,0.5615532]
[1746693519905,0.2007528,99620.0,99619.0,0.5615532]
[1746693520398,0.3159528,99620.0,99619.0,0.5615532]
[1746693521104,0.4839528,99620.0,99619.0,0.5615532]
[1746693521293,0.4839528,99620.0,99619.0,0.5625532]
[1746693521499,0.5843328,99620.0,99619.0,0.001]
[1746693522197,0.5843328,99620.0,99619.0,0.002]
[1746693522796,0.5873328,99620.0,99619.0,0.002]
[1746693524006,0.2007689,99612.0,99611.0,0.2007695]
[1746693524208,0.2775289,99612.0,99611.0,0.2107695]
[1746693525006,0.2775289,99612.0,99611.0,0.2007695]
[1746693525208,0.3950289,99612.0,99611.0,0.2307695]
[1746693526006,0.3950289,99612.0,99611.0,0.2007695]
[1746693526708,0.3970289,99612.0,99611.0,0.2007695]
[1746693529307,0.3970289,99612.0,99611.0,0.2604695]
[1746693530310,0.3970289,99612.0,99611.0,0.3004695]
[1746693530606,0.4974209,99612.0,99611.0,0.2407695]
[1746693531012,0.4974209,99612.0,99611.0,0.2936695]
[1746693531212,0.4974209,99612.0,99611.0,0.2536695]
[1746693538518,0.3970289,99612.0,99611.0,0.2536695]
[1746693540028,0.3970289,99612.0,99611.0,0.0529]
[1746693540225,0.200783,99605.0,99604.0,0.0519]
[1746693540422,0.2509931,99603.0,99602.0,0.2509755]
[1746693540821,0.2509931,99603.0,99602.0,0.26159522]
[1746693541025,0.3546931,99603.0,99602.0,0.26159522]
[1746693542831,0.3556931,99603.0,99602.0,0.26359522]
[1746693543530,0.3556931,99603.0,99602.0,0.31879522]
[1746693547522,0.3556931,99603.0,99602.0,0.33385256]
[1746693547924,0.001,99603.0,99602.0,0.33385256]
[1746693548228,0.2017871,99603.0,99602.0,0.33385256]
[1746693548536,0.001,99603.0,99602.0,0.38865256]
[1746693548924,0.2017871,99603.0,99602.0,0.38865256]
[1746693549530,0.2017871,99603.0,99602.0,0.3889595]
[1746693551230,0.001,99603.0,99602.0,0.3889595]
[1746693553934,0.2783471,99603.0,99602.0,0.38896064]
[1746693555031,0.2783471,99603.0,99602.0,0.38889881]
[1746693558631,0.2783471,99603.0,99602.0,0.74969881]
[1746693560533,0.2783471,99603.0,99602.0,0.74973946]
[1746693561632,0.07756,99603.0,99602.0,0.74973946]
[1746693561834,0.2783471,99603.0,99602.0,0.74773946]
[1746693562228,0.2783471,99603.0,99602.0,0.73239522]
[1746693562427,0.2783471,99603.0,99602.0,0.74788545]
[1746693563441,0.2783471,99603.0,99602.0,0.74688545]
[1746693563633,0.07756,99603.0,99602.0,0.74788545]
[1746693564035,0.07756,99603.0,99602.0,0.76788545]
[1746693564336,0.07756,99603.0,99602.0,0.76803895]
[1746693564939,0.07656,99603.0,99602.0,0.76803895]
[1746693566136,0.07656,99603.0,99602.0,0.76809049]
[1746693568842,0.07656,99603.0,99602.0,0.76909049]
[1746693569440,0.07656,99603.0,99602.0,0.77009049]
[1746693569638,0.07656,99603.0,99602.0,0.77109049]
[1746693570437,0.07656,99615.0,99604.0,0.0501961]
[1746693570753,0.07656,99619.0,99618.0,0.2007568]
[1746693570930,0.07656,99619.0,99618.0,0.59225207]
[1746693571241,0.07656,99619.0,99618.0,0.52287179]
[1746693572840,0.07856,99619.0,99618.0,0.52287179]
[1746693573344,0.07856,99619.0,99618.0,0.52286954]
[1746693573543,0.07656,99619.0,99618.0,0.52586954]
[1746693574745,0.0551,99620.0,99619.0,0.2007548]
[1746693574937,0.0551,99620.0,99619.0,0.36386754]
[1746693576037,0.0551,99620.0,99619.0,0.36586754]
[1746693576246,0.0551,99620.0,99619.0,0.72766754]
[1746693576847,0.07652,99629.0,99628.0,0.2007367]
[1746693577039,0.07652,99629.0,99628.0,0.70422972]
[1746693577238,0.07652,99629.0,99628.0,0.76694944]
[1746693577841,0.07652,99629.0,99628.0,0.77694944]
[1746693578738,0.07752,99629.0,99628.0,0.77694944]
[1746693579045,0.07752,99629.0,99628.0,0.78678243]
[1746693579248,0.001,99629.0,99628.0,0.78678243]
[1746693580241,0.0543,99634.0,99633.0,0.2007266]
[1746693580447,0.0543,99634.0,99633.0,0.27703934]
[1746693581046,0.07652,99635.0,99634.0,0.2007246]
[1746693581248,0.07652,99635.0,99634.0,0.38233734]
[1746693582347,0.13022,99635.0,99634.0,0.38233734]
[1746693582549,0.13022,99635.0,99634.0,0.38233458]
[1746693583049,0.13022,99635.0,99634.0,0.38333458]
[1746693583648,0.13022,99635.0,99634.0,0.74413458]
[1746693584350,0.13022,99635.0,99634.0,0.74513458]
[1746693585753,0.13022,99635.0,99634.0,0.74413458]
[1746693585953,0.13022,99635.0,99634.0,0.74513458]
[1746693586145,0.18432,99635.0,99634.0,0.74513438]
[1746693586951,0.18432,99635.0,99634.0,0.74413438]
[1746693587153,0.18432,99635.0,99634.0,0.74613438]
[1746693587754,0.18432,99635.0,99634.0,0.38533438]
[1746693587952,0.18432,99635.0,99634.0,0.74613438]
[1746693588155,0.18432,99635.0,99634.0,0.69383438]
[1746693588553,0.18432,99635.0,99634.0,0.69283438]
[1746693588742,0.18432,99635.0,99634.0,0.69383438]
[1746693589154,0.18432,99635.0,99634.0,0.69283438]
[1746693589353,0.18432,99635.0,99634.0,0.69383438]
[1746693591454,0.18432,99635.0,99634.0,0.69083438]
[1746693591755,0.18432,99635.0,99634.0,0.69383438]
[1746693592758,0.18432,99635.0,99634.0,0.69283438]
[1746693592957,0.18432,99635.0,99634.0,0.69383438]
[1746693593560,0.18432,99635.0,99634.0,0.69183466]
[1746693593757,0.18432,99635.0,99634.0,0.69383466]
[1746693594358,0.18432,99635.0,99634.0,0.33103466]
[1746693594559,0.18432,99635.0,99634.0,0.69383466]
[1746693596954,0.1078,99635.0,99634.0,0.69383466]
[1746693597258,0.1078,99635.0,99634.0,0.69383461]
[1746693603762,0.1078,99635.0,99634.0,0.69383433]
[1746693605567,0.1078,99635.0,99634.0,0.84600362]
[1746693609265,0.1078,99635.0,99634.0,0.69383433]
[1746693609656,0.1078,99635.0,99634.0,0.63021461]
[1746693610061,0.3085226,99635.0,99634.0,0.58021461]
[1746693610269,0.1078,99635.0,99634.0,0.58021461]
[1746693613664,0.1078,99635.0,99634.0,0.58021494]
[1746693614067,0.1078,99635.0,99634.0,0.65021494]
[1746693614268,0.1078,99635.0,99634.0,0.68551494]
[1746693616671,0.1078,99635.0,99634.0,0.68551451]
[1746693617274,0.011,99636.0,99635.0,0.2007226]